[Event "23rd Alekhine FIDE 2019"]
[Site "Voronezh"]
[Date "2019.06.15"]
[Round "4.12"]
[White "Kuznetsov, Sergei"]
[Black "Lekhtonen, Yaroslav"]
[Result "1-0"]
[ECO "D30"]
[WhiteElo "2071"]
[BlackElo "1776"]
[Annotator "NA"]
[PlyCount "43"]
[EventDate "2019.06.12"]
[EventType "swiss"]
[EventCountry "RUS"]
[SourceTitle "playchess.com"]
[Source "ChessBase"]
[SourceQuality "1"]
[TimeControl "40/5400+30:1800+30"]

1. d4 {[%emt 0:00:00]} d5 {[%emt 0:03:09]} 2. c4 {[%emt 0:00:02]} e6 {[%emt 0:00:28]} 3. cxd5 {[%emt 0:00:31]} exd5 {[%emt 0:00:08]} 4. Nc3 {[%emt 0:00:23]} c6 {[%emt 0:01:50]} 5. Qc2 {[%emt 0:00:35]} Be7 {[%emt 0:03:04]} 6. Bf4 {[%emt 0:01:25]} Nf6 {[%emt 0:01:05]} 7. e3 {[%emt 0:00:31]} Nbd7 {[%emt 0:02:42]} 8. h3 {[%emt 0:00:49]} b6 {[%emt 0:03:24]} 9. Bd3 {[%emt 0:01:53]} O-O {[%emt 0:01:11]} 10. g4 {[%emt 0:05:45]} g6 {[%emt 0:05:54]} 11. Nf3 {[%emt 0:05:12]} Bb7 {[%emt 0:03:40] [#]} (11... c5 $11 {remains equal.}) 12. O-O-O {[%emt 0:07:21]} (12. h4 $1 $16) 12... Rc8 {[%emt 0:06:00]} 13. h4 {[%emt 0:08:41]} Nxg4 {[%emt 0:13:39]} 14. Rdg1 {[%emt 0:02:11]} Ndf6 $18 {[%emt 0:17:33]} 15. h5 {[%emt 0:01:31]} Kg7 {[%emt 0:02:41]} 16. Ne5 {[%emt 0:04:50]} Nxe5 {[%emt 0:01:58]} 17. dxe5 {[%emt 0:04:06]} Ne4 {[%emt 0:02:49]} 18. hxg6 {[%emt 0:00:25]} fxg6 {[%emt 0:01:42]} 19. Nxe4 {[%emt 0:01:02]} dxe4 {[%emt 0:00:50]} 20. Bxe4 {[%emt 0:00:23]} Qd5 {[%emt 0:05:00]} 21. Bxg6 {[%emt 0:10:30]} Qc5 {[%emt 0:02:59]} 22. Rxh7+ {[%emt 0:00:24]} 1-0

[Event "23rd Alekhine FIDE 2019"]
[Site "Voronezh"]
[Date "2019.06.15"]
[Round "4.13"]
[White "Bratov, Ademir"]
[Black "Khajrutdinov, Ildar"]
[Result "1-0"]
[ECO "B40"]
[WhiteElo "1725"]
[BlackElo "2063"]
[Annotator "NA"]
[PlyCount "91"]
[EventDate "2019.06.12"]
[EventType "swiss"]
[EventCountry "RUS"]
[SourceTitle "playchess.com"]
[Source "ChessBase"]
[SourceQuality "1"]
[TimeControl "40/5400+30:1800+30"]

1. e4 {[%emt 0:00:00]} c5 {[%emt 0:00:12]} 2. Nf3 {[%emt 0:00:00]} e6 {[%emt 0:00:09]} 3. c3 {[%emt 0:00:06]} Nf6 {[%emt 0:01:34]} 4. e5 {[%emt 0:00:12]} Nd5 {[%emt 0:00:10]} 5. d4 {[%emt 0:00:20]} cxd4 {[%emt 0:00:21]} 6. cxd4 {[%emt 0:00:11]} b6 {[%emt 0:00:37]} 7. Bc4 {[%emt 0:01:40]} Bb7 {[%emt 0:06:21]} 8. O-O {[%emt 0:00:59]} Be7 {[%emt 0:05:00]} 9. Bd2 {[%emt 0:01:40]} O-O {[%emt 0:01:47]} 10. Nc3 {[%emt 0:00:54]} Nxc3 {[%emt 0:04:03]} 11. Bxc3 {[%emt 0:00:13]} d5 {[%emt 0:14:00]} 12. Bd3 {[%emt 0:02:30]} Ba6 {[%emt 0:00:58]} 13. Rc1 {[%emt 0:02:25]} Qd7 {[%emt 0:02:47]} 14. h3 {[%emt 0:04:23]} Rc8 {[%emt 0:05:35]} 15. a3 {[%emt 0:02:44]} Qb7 {[%emt 0:08:01]} 16. Nh2 {[%emt 0:02:09]} Bxd3 {[%emt 0:21:27]} 17. Qxd3 {[%emt 0:00:07]} Qa6 {[%emt 0:00:41]} 18. Qg3 {[%emt 0:03:01]} Nc6 $11 {[%emt 0:01:38]} 19. Ng4 {[%emt 0:02:57]} Qa4 {[%emt 0:03:21]} 20. Rcd1 {[%emt 0:06:59]} Qc2 {[%emt 0:03:44]} 21. f4 {[%emt 0:03:06]} Qg6 {[%emt 0:01:25]} 22. Qf3 {[%emt 0:01:00]} Rd8 {[%emt 0:08:32]} 23. Ne3 {[%emt 0:02:57]} Qe4 {[%emt 0:05:22]} 24. Qf2 {[%emt 0:03:47]} Rac8 {[%emt 0:02:28]} 25. f5 {[%emt 0:02:09]} Bg5 {[%emt 0:00:43]} 26. Nc2 {[%emt 0:07:21]} Qxf5 {[%emt 0:01:10]} 27. Qxf5 {[%emt 0:00:12]} exf5 {[%emt 0:00:01]} 28. Rxf5 {[%emt 0:00:08]} h6 {[%emt 0:00:44]} 29. Rdf1 {[%emt 0:02:47]} Rd7 {[%emt 0:00:18]} 30. R5f3 {[%emt 0:01:16]} Nd8 {[%emt 0:00:27]} 31. Nb4 {[%emt 0:04:08]} Ne6 {[%emt 0:00:46]} 32. g3 {[%emt 0:06:45]} a5 {[%emt 0:00:37]} 33. Na2 {[%emt 0:02:30]} Rc4 {[%emt 0:00:43]} 34. Rd1 {[%emt 0:01:35]} Bd8 {[%emt 0:00:36]} 35. h4 {[%emt 0:00:38]} b5 {[%emt 0:00:14]} 36. Kf2 {[%emt 0:02:09]} Bb6 {[%emt 0:00:46]} 37. Ke3 {[%emt 0:01:23]} Rb7 {[%emt 0:00:26]} 38. b3 {[%emt 0:02:51]} Rc6 {[%emt 0:00:17]} 39. Kd3 {[%emt 0:01:46]} Rbc7 {[%emt 0:00:21]} 40. Rf2 {[%emt 0:03:35]} a4 {[%emt 0:00:59]} 41. bxa4 {[%emt 0:32:42]} bxa4 {[%emt 0:30:02]} 42. Rb2 {[%emt 0:00:52]} Ba7 {[%emt 0:00:29]} 43. Rb5 {[%emt 0:00:27]} Rd7 {[%emt 0:01:02]} 44. Nb4 {[%emt 0:01:13]} Nc7 {[%emt 0:00:31]} 45. Rb7 {[%emt 0:00:58]} Rxc3+ {[%emt 0:00:30]} 46. Kxc3 {[%emt 0:00:08]} 1-0

[Event "23rd Alekhine FIDE 2019"]
[Site "Voronezh"]
[Date "2019.06.15"]
[Round "4.14"]
[White "Bujakevich, Aleksandr"]
[Black "Ryumshin, Vladislav"]
[Result "1/2-1/2"]
[ECO "C53"]
[WhiteElo "2025"]
[BlackElo "1651"]
[Annotator "NA"]
[PlyCount "111"]
[EventDate "2019.06.12"]
[EventType "swiss"]
[EventCountry "RUS"]
[SourceTitle "playchess.com"]
[Source "ChessBase"]
[SourceQuality "1"]
[TimeControl "40/5400+30:1800+30"]

1. e4 {[%emt 0:01:39]} e5 {[%emt 0:00:00]} 2. Nf3 {[%emt 0:00:12]} Nc6 {[%emt 0:00:00]} 3. Bc4 {[%emt 0:00:08]} Bc5 {[%emt 0:00:02]} 4. c3 {[%emt 0:00:09]} Nge7 {[%emt 0:00:21]} 5. d4 {[%emt 0:05:30]} exd4 {[%emt 0:00:16]} 6. cxd4 {[%emt 0:01:43]} Bb4+ {[%emt 0:00:08]} 7. Nc3 {[%emt 0:00:49]} d5 {[%emt 0:01:49]} 8. exd5 {[%emt 0:03:37]} Nxd5 {[%emt 0:01:20]} 9. O-O {[%emt 0:00:32]} Bxc3 {[%emt 0:00:16]} 10. bxc3 {[%emt 0:01:16]} O-O {[%emt 0:00:15]} 11. Qc2 {[%emt 0:19:12]} h6 {[%emt 0:01:26] C54: Giuoco Piano: 4 c3 Nf6, main lines with 5 d4 and 5 d3} 12. Re1 {[%emt 0:07:28]} Be6 {[%emt 0:01:45] [#]} 13. Bb3 $146 {[%emt 0:04:38]} (13. Bxh6 $142 $1 {[%mdl 512]} Qd7 (13... gxh6 14. Rxe6) 14. Bd2 (14. Ng5 Bf5 $17)) ({Predecessor:} 13. Bd3 Qf6 14. Rb1 Rab8 15. a3 Nf4 16. Bxf4 Qxf4 17. Re4 Qd6 18. Rh4 f5 19. Qc1 {½-½ (76) Mahmutagic,A-Sadikovic,J (2031) Sarajevo 2019}) 13... Qf6 {[%emt 0:05:02]} 14. Bd2 {[%emt 0:06:44]} Bf5 {[%emt 0:07:45]} 15. Qb2 {[%emt 0:03:32]} Nb6 {[%emt 0:02:22]} 16. Ne5 {[%emt 0:04:26]} Nxe5 {[%emt 0:01:07]} 17. Rxe5 {[%emt 0:00:23]} Rfe8 {[%emt 0:01:37]} 18. Rae1 {[%emt 0:00:24]} Rxe5 {[%emt 0:00:22]} 19. Rxe5 {[%emt 0:00:22]} Bd3 {[%emt 0:01:39]} 20. Re3 {[%emt 0:09:20]} Bc4 $14 {[%emt 0:02:38]} 21. Qc2 {[%emt 0:02:58]} Qc6 {[%emt 0:04:11]} 22. Qe4 {[%emt 0:06:48]} Bd5 {[%emt 0:02:53]} 23. Qg4 {[%emt 0:06:34]} Re8 {[%emt 0:04:36]} 24. Rxe8+ {[%emt 0:01:05]} Qxe8 {[%emt 0:00:30]} 25. h3 {[%emt 0:00:32]} Qe6 {[%emt 0:01:31]} 26. Qxe6 {[%emt 0:01:16]} fxe6 {[%emt 0:00:14]} 27. Bf4 {[%emt 0:02:30]} Bxb3 {[%emt 0:00:21]} 28. axb3 {[%emt 0:00:07]} Nd5 {[%emt 0:00:05]} 29. Bd2 {[%emt 0:00:26]} b5 {[%emt 0:00:20]} 30. Kf1 {[%emt 0:01:00]} c6 {[%emt 0:00:28]} 31. Ke2 {[%emt 0:00:14]} Kf7 {[%emt 0:00:11]} 32. Kd3 {[%emt 0:00:39]} Kf6 {[%emt 0:01:09]} 33. c4 {[%emt 0:01:02]} Nb6 {[%emt 0:01:00]} 34. Bf4 {[%emt 0:02:23]} Kf5 {[%emt 0:02:30]} 35. Be5 {[%emt 0:02:41]} g5 {[%emt 0:01:37]} 36. g4+ {[%emt 0:00:29]} Kg6 {[%emt 0:00:01]} 37. Bc7 {[%emt 0:01:32]} Kf7 {[%emt 0:02:14]} 38. Kc3 {[%emt 0:00:18]} bxc4 {[%emt 0:00:07]} 39. bxc4 {[%emt 0:00:12]} Ke7 {[%emt 0:00:59]} 40. f4 {[%emt 0:01:16]} Nd7 {[%emt 0:01:26]} 41. Kd3 {[%emt 0:33:35]} Nf6 {[%emt 0:32:24]} 42. Ke3 {[%emt 0:00:34]} Kd7 {[%emt 0:01:03]} 43. Ba5 {[%emt 0:00:06]} Ke7 {[%emt 0:00:14]} 44. Kf3 {[%emt 0:00:22]} Kf7 {[%emt 0:00:25]} 45. Be1 {[%emt 0:00:26]} Nd7 {[%emt 0:01:22]} 46. h4 {[%emt 0:01:14]} gxh4 {[%emt 0:00:33]} 47. Bxh4 {[%emt 0:00:04]} a5 {[%emt 0:01:21]} 48. Ke3 {[%emt 0:00:29]} a4 {[%emt 0:00:01]} 49. Kd3 {[%emt 0:00:26]} a3 {[%emt 0:00:03]} 50. Kc3 {[%emt 0:00:16]} Nb6 {[%emt 0:00:30]} 51. c5 {[%emt 0:00:26]} Nd5+ {[%emt 0:00:07]} 52. Kb3 {[%emt 0:00:18]} Nxf4 {[%emt 0:00:30]} 53. Kxa3 {[%emt 0:00:07]} Ne2 {[%emt 0:00:14]} 54. Bf2 {[%emt 0:00:05]} Kg6 {[%emt 0:04:17]} 55. Be3 {[%emt 0:00:13]} h5 {[%emt 0:00:15]} 56. gxh5+ 1/2-1/2

[Event "23rd Alekhine FIDE 2019"]
[Site "Voronezh"]
[Date "2019.06.16"]
[Round "5.1"]
[White "Vasiljev, Ilya"]
[Black "Tatarintsev, Egor"]
[Result "*"]
[ECO "B40"]
[WhiteElo "1762"]
[BlackElo "2001"]
[Annotator "NA RC"]
[PlyCount "50"]
[EventDate "2019.06.12"]
[EventType "swiss"]
[EventCountry "RUS"]
[SourceTitle "playchess.com"]
[Source "ChessBase"]
[SourceQuality "1"]
[TimeControl "40/5400+30:1800+30"]

1. e4 c5 {[%emt 0:25:56]} 2. Nf3 e6 {[%emt 0:00:30]} 3. d4 cxd4 {[%emt 0:00:30]} 4. Nxd4 Nf6 {[%emt 0:00:30]} 5. Nc3 Nc6 {[%emt 0:00:30]} 6. Nxc6 bxc6 {[%emt 0:00:30]} 7. e5 Nd5 {[%emt 0:00:30]} 8. Nxd5 cxd5 {[%emt 0:00:30]} 9. Bd3 Ba6 {[%emt 0:00:30]} 10. O-O Bxd3 {[%emt 0:00:30]} 11. cxd3 d6 {[%emt 0:00:30]} 12. Bf4 Be7 {[%emt 0:00:30]} 13. Qg4 g5 {[%emt 0:00:30]} 14. exd6 Bf6 {[%emt 0:00:30]} 15. Bd2 {[%emt 0:36:20]} h5 {[%emt 0:00:30]} 16. Qa4+ {[%emt 0:00:30]} Qd7 {[%emt 0:00:26]} 17. Qa6 {[%emt 0:00:13]} Rb8 {[%emt 0:08:46]} 18. Rac1 {[%emt 0:01:58]} Rb6 {[%emt 0:04:48]} 19. Qc8+ {[%emt 0:00:54]} Qxc8 {[%emt 0:02:57]} 20. Rxc8+ {[%emt 0:00:06]} Kd7 {[%emt 0:00:04]} 21. Rc7+ {[%emt 0:00:06]} Kxd6 {[%emt 0:02:00]} 22. Rxf7 {[%emt 0:00:13]} Bxb2 {[%emt 0:06:15]} 23. Bxg5 {[%emt 0:00:33]} Ra6 {[%emt 0:04:10]} 24. Re1 {[%emt 0:12:09]} Rc8 {[%emt 0:14:57]} 25. h4 {[%emt 0:04:21]} Kc5 {[%emt 0:05:44]} *

[Event "23rd Alekhine FIDE 2019"]
[Site "Voronezh"]
[Date "2019.06.16"]
[Round "5.4"]
[White "Yakimenko, Alexander A."]
[Black "Ashutosh, Kumar"]
[Result "0-1"]
[ECO "B23"]
[WhiteElo "2072"]
[BlackElo "1852"]
[Annotator "NA RC"]
[PlyCount "48"]
[EventDate "2019.06.12"]
[EventType "swiss"]
[EventCountry "RUS"]
[SourceTitle "playchess.com"]
[Source "ChessBase"]
[SourceQuality "1"]
[TimeControl "40/5400+30:1800+30"]

1. e4 {[%emt 0:00:55]} c5 {[%emt 0:00:45]} 2. Nc3 {[%emt 0:00:28]} Nc6 {[%emt 0:00:59]} 3. f4 {[%emt 0:00:13]} g6 {[%emt 0:00:17]} 4. Nf3 {[%emt 0:00:10]} Bg7 {[%emt 0:00:20]} 5. Bc4 {[%emt 0:00:15]} e6 {[%emt 0:00:21]} 6. O-O {[%emt 0:00:13]} Nge7 {[%emt 0:00:20]} 7. d3 {[%emt 0:00:18]} d5 {[%emt 0:01:05]} 8. Bb5 {[%emt 0:00:45]} O-O {[%emt 0:00:28]} 9. Kh1 {[%emt 0:16:02]} Nd4 {[%emt 0:03:52]} 10. Nxd4 {[%emt 0:00:34]} cxd4 {[%emt 0:00:31]} 11. Ne2 {[%emt 0:00:23]} Qa5 {[%emt 0:00:30]} 12. c4 {[%emt 0:21:01]} dxc3 {[%emt 0:00:30]} 13. Nxc3 {[%emt 0:00:35]} Bxc3 {[%emt 0:00:30]} 14. bxc3 {[%emt 0:00:00]} Qxb5 {[%emt 0:00:23]} 15. Ba3 {[%emt 0:00:28]} Re8 {[%emt 0:04:59]} 16. g4 {[%emt 0:13:14]} Qc6 {[%emt 0:16:33]} 17. Qe2 {[%emt 0:02:03]} dxe4 {[%emt 0:01:19]} 18. dxe4 {[%emt 0:00:05]} b6 {[%emt 0:00:29]} 19. Rae1 {[%emt 0:02:14]} Bb7 {[%emt 0:01:01]} 20. h3 {[%emt 0:03:10]} f5 {[%emt 0:00:59]} 21. Kh2 {[%emt 0:02:35]} fxe4 {[%emt 0:04:33]} 22. Rf2 {[%emt 0:09:57]} Rad8 {[%emt 0:01:22]} 23. c4 {[%emt 0:01:26]} Rd3 {[%emt 0:03:53]} 24. Bb2 {[%emt 0:00:45]} e3 {[%emt 0:03:53]} 0-1

[Event "23rd Alekhine FIDE 2019"]
[Site "Voronezh"]
[Date "2019.06.16"]
[Round "5.5"]
[White "Stepochkin, Fedor"]
[Black "Kuznetsov, Sergei"]
[Result "1-0"]
[ECO "C15"]
[WhiteElo "1929"]
[BlackElo "2071"]
[Annotator "NA RC"]
[PlyCount "119"]
[EventDate "2019.06.12"]
[EventType "swiss"]
[EventCountry "RUS"]
[SourceTitle "playchess.com"]
[Source "ChessBase"]
[SourceQuality "1"]
[TimeControl "40/5400+30:1800+30"]

1. e4 {[%emt 0:00:00]} e6 {[%emt 0:00:00]} 2. d4 {[%emt 0:00:00]} d5 {[%emt 0:00:00]} 3. Nc3 {[%emt 0:00:00]} Bb4 {[%emt 0:00:00]} 4. Nge2 {[%emt 0:00:00]} dxe4 {[%emt 0:00:43]} 5. a3 {[%emt 0:00:00]} Bxc3+ 6. Nxc3 {[%emt 0:00:00]} f5 {[%emt 0:00:56]} 7. f3 {[%emt 0:01:18]} exf3 8. Qxf3 {[%emt 0:00:07]} Nf6 {[%emt 0:00:58]} 9. Bf4 {[%emt 0:06:21]} O-O {[%emt 0:00:33]} 10. O-O-O {[%emt 0:01:16]} c6 {[%emt 0:01:40]} 11. Bc4 {[%emt 0:09:59] C15: French: 3 Nc3 Bb4: Unusual White 4th moves} Nd5 {[%emt 0:00:32]} 12. Rhe1 {[%emt 0:01:04]} b5 {[%emt 0:06:35]} (12... a5 13. Bxd5 cxd5 14. Nb5 Na6 15. Bd6 Rf6 16. Bf4 Bd7 17. Nd6 Bc6 18. h4 Qe7 {1-0 (33) Das,A (2457)-Nikolic,P (2601) Leiden 2015}) 13. Bb3 {[%emt 0:07:46]} Na6 {[%emt 0:06:02]} 14. Nxd5 $146 {[%emt 0:20:05]} ({Predecessor:} 14. Be5 b4 15. axb4 Naxb4 16. Kb1 Rf7 {1-0 (37) Kuehn,P (2235)-Van Son,L Germany 1995}) 14... cxd5 {[%emt 0:04:49]} 15. g4 {[%emt 0:01:43]} Bd7 {[%emt 0:11:01]} 16. gxf5 {[%emt 0:00:52]} Rxf5 {[%emt 0:00:26]} 17. Qg3 {[%emt 0:01:07]} Qf6 {[%emt 0:02:18]} 18. Be3 {[%emt 0:08:03]} Rc8 {[%emt 0:05:26]} 19. c3 {[%emt 0:02:28]} Be8 {[%emt 0:02:46]} 20. Bc2 {[%emt 0:03:08]} Rf3 {[%emt 0:00:47]} 21. Qg2 {[%emt 0:00:17]} Bh5 {[%emt 0:05:14]} 22. Rd2 {[%emt 0:21:31]} Rf8 {[%emt 0:00:48]} 23. Bd3 {[%emt 0:00:56]} Nc7 {[%emt 0:09:28]} 24. Bg5 {[%emt 0:02:10]} Qf7 {[%emt 0:02:16]} 25. Be2 {[%emt 0:01:20]} Rf5 {[%emt 0:01:11]} 26. Bd3 {[%emt 0:00:13]} Bg6 {[%emt 0:12:56]} 27. Bh4 {[%emt 0:03:35]} Ne8 {[%emt 0:15:26]} 28. Kb1 {[%emt 0:02:26]} Rf1 {[%emt 0:04:03]} 29. Bxg6 {[%emt 0:03:02]} Qxg6+ {[%emt 0:00:50]} 30. Qxg6 {[%emt 0:00:05]} Rxe1+ {[%emt 0:00:35]} 31. Bxe1 {[%emt 0:00:08]} hxg6 {[%emt 0:00:03]} 32. Re2 {[%emt 0:00:32]} Kf7 {[%emt 0:00:07]} 33. Kc2 {[%emt 0:00:26]} Nd6 {[%emt 0:02:41]} 34. Kb3 {[%emt 0:01:02]} Rc8 {[%emt 0:01:27]} 35. Bg3 {[%emt 0:01:32]} Ne4 {[%emt 0:00:38]} 36. Be5 {[%emt 0:00:37]} g5 {[%emt 0:00:20]} 37. Kb4 $11 {[%emt 0:00:59]} a6 {[%emt 0:00:05]} 38. Ka5 {[%emt 0:00:44]} Rc6 {[%emt 0:00:21]} 39. Rg2 {[%emt 0:00:05]} g6 {[%emt 0:00:57]} 40. a4 {[%emt 0:01:15]} bxa4 {[%emt 0:00:20]} 41. Kxa4 {[%emt 0:30:04]} Kg8 {[%emt 0:30:40]} 42. Kb3 {[%emt 0:02:08]} Kh7 {[%emt 0:00:15]} 43. Kc2 {[%emt 0:00:29]} Kh6 {[%emt 0:00:28]} 44. Rg1 {[%emt 0:00:21]} Kh5 {[%emt 0:00:39]} 45. Rf1 {[%emt 0:00:36]} Nd6 {[%emt 0:01:13]} 46. Rf8 {[%emt 0:00:36]} Nc4 {[%emt 0:00:44]} 47. Bg3 {[%emt 0:00:29]} Ne3+ {[%emt 0:00:30]} 48. Kd3 {[%emt 0:00:07]} Nf5 {[%emt 0:00:57]} 49. h3 {[%emt 0:00:49]} g4 {[%emt 0:00:04]} 50. h4 {[%emt 0:00:18]} g5 {[%emt 0:00:05]} 51. Be5 {[%emt 0:00:45]} gxh4 {[%emt 0:00:43]} 52. Rh8+ {[%emt 0:00:08]} Nh6 {[%emt 0:02:50]} 53. Bf4 {[%emt 0:00:23]} e5 {[%emt 0:00:03]} 54. dxe5 {[%emt 0:00:06]} g3 {[%emt 0:00:38]} 55. Ke2 {[%emt 0:00:40]} Kg4 {[%emt 0:00:28]} 56. Bxh6 {[%emt 0:00:44]} Rg6 {[%emt 0:00:45]} 57. Kf1 {[%emt 0:00:49]} h3 {[%emt 0:00:18]} 58. Be3 {[%emt 0:00:29]} Kf3 {[%emt 0:00:37]} 59. Bd4 {[%emt 0:00:31]} Rg4 {[%emt 0:00:42]} 60. Rxh3 {[%emt 0:00:13]} 1-0

[Event "23rd Alekhine FIDE 2019"]
[Site "Voronezh"]
[Date "2019.06.16"]
[Round "5.6"]
[White "Natarov, Ilya"]
[Black "Bratov, Ademir"]
[Result "1-0"]
[ECO "A80"]
[WhiteElo "2045"]
[BlackElo "1725"]
[Annotator "NA RC"]
[PlyCount "115"]
[EventDate "2019.06.12"]
[EventType "swiss"]
[EventCountry "RUS"]
[SourceTitle "playchess.com"]
[Source "ChessBase"]
[SourceQuality "1"]
[TimeControl "40/5400+30:1800+30"]

1. d4 {[%emt 0:00:00]} f5 {[%emt 0:00:00]} 2. Nc3 {[%emt 0:00:06]} Nf6 {[%emt 0:00:00]} 3. Bg5 {[%emt 0:00:07]} d5 {[%emt 0:00:26]} 4. e3 {[%emt 0:00:23]} e6 {[%emt 0:00:40]} 5. Nf3 {[%emt 0:01:38]} c5 {[%emt 0:01:08]} 6. Ne5 {[%emt 0:03:56]} Be7 {[%emt 0:10:57]} 7. Bb5+ {[%emt 0:17:55]} Bd7 {[%emt 0:03:15]} 8. Nxd7 {[%emt 0:00:47]} Nbxd7 {[%emt 0:00:10]} 9. dxc5 {[%emt 0:00:23]} O-O {[%emt 0:01:18]} 10. c6 {[%emt 0:02:07]} bxc6 {[%emt 0:03:47]} 11. Bxc6 {[%emt 0:00:04]} Rb8 {[%emt 0:00:09]} 12. Bxd7 {[%emt 0:02:12]} Qxd7 {[%emt 0:00:17]} 13. Rb1 {[%emt 0:00:25]} Bb4 {[%emt 0:01:09]} 14. Bxf6 {[%emt 0:00:46]} Rxf6 {[%emt 0:00:19]} 15. O-O {[%emt 0:00:18]} Bxc3 {[%emt 0:06:01]} 16. bxc3 {[%emt 0:00:00]} Rxb1 {[%emt 0:02:18]} 17. Qxb1 {[%emt 0:00:01]} Qc7 {[%emt 0:00:09]} 18. Qb4 {[%emt 0:01:03]} Rf8 {[%emt 0:04:52]} 19. Rb1 {[%emt 0:00:19]} Rc8 {[%emt 0:02:28]} 20. Rb3 {[%emt 0:00:32]} a5 {[%emt 0:06:29]} 21. Qb5 {[%emt 0:01:56]} Kf7 {[%emt 0:18:18]} 22. g3 {[%emt 0:02:06]} Qc6 {[%emt 0:02:32]} 23. Qe2 {[%emt 0:21:52]} a4 {[%emt 0:04:50]} 24. Rb4 {[%emt 0:00:22]} Qxc3 {[%emt 0:02:12]} 25. Rxa4 {[%emt 0:00:38]} Qxc2 {[%emt 0:02:48]} 26. Qh5+ {[%emt 0:01:35]} Kg8 {[%emt 0:02:05]} 27. Ra7 {[%emt 0:07:37]} Qb1+ {[%emt 0:03:18]} 28. Kg2 {[%emt 0:00:10]} Qe4+ {[%emt 0:00:06]} 29. Kh3 {[%emt 0:00:58]} Rf8 {[%emt 0:01:36]} 30. a4 {[%emt 0:11:51]} Qe5 {[%emt 0:05:38]} 31. Qg5 {[%emt 0:02:44]} h6 {[%emt 0:03:10]} 32. Qe7 {[%emt 0:03:22]} f4 {[%emt 0:04:15]} 33. exf4 {[%emt 0:03:23]} Qf5+ {[%emt 0:01:14]} 34. Kg2 {[%emt 0:02:22]} Qe4+ {[%emt 0:01:13]} 35. f3 {[%emt 0:02:50]} Qc2+ {[%emt 0:00:04]} 36. Kh3 {[%emt 0:00:08]} Qf5+ {[%emt 0:00:29]} 37. g4 {[%emt 0:00:12]} Qg6 {[%emt 0:00:06]} 38. Rd7 {[%emt 0:02:15]} Rxf4 {[%emt 0:01:31]} 39. Rd8+ {[%emt 0:03:24]} Kh7 {[%emt 0:00:11]} 40. Kg3 {[%emt 0:00:15]} Rf7 {[%emt 0:01:40]} 41. Qa3 {[%emt 0:31:54]} e5 {[%emt 0:31:31]} 42. Rxd5 {[%emt 0:01:09]} Qg5 {[%emt 0:00:40]} 43. Qd3+ {[%emt 0:00:44]} g6 {[%emt 0:00:09]} 44. Rd7 {[%emt 0:01:01]} Qf4+ {[%emt 0:00:49]} 45. Kg2 {[%emt 0:00:01]} Kg7 {[%emt 0:00:28]} 46. Rxf7+ {[%emt 0:00:20]} Kxf7 {[%emt 0:00:01]} 47. a5 {[%emt 0:00:30]} Qb4 {[%emt 0:00:53]} 48. a6 {[%emt 0:00:10]} Qb2+ {[%emt 0:00:07]} 49. Kg3 {[%emt 0:00:05]} Qb6 {[%emt 0:00:42]} 50. Qf1 {[%emt 0:01:07]} g5 {[%emt 0:01:04]} 51. Qa1 {[%emt 0:00:40]} Qe3 {[%emt 0:00:38]} 52. a7 {[%emt 0:01:53]} e4 {[%emt 0:01:12]} 53. Qa2+ {[%emt 0:00:57]} Kf6 {[%emt 0:00:29]} 54. Qf2 {[%emt 0:01:36]} Qa3 {[%emt 0:01:24]} 55. Qd4+ {[%emt 0:00:35]} Kf7 {[%emt 0:00:23]} 56. Qxe4 {[%emt 0:00:29]} Qd6+ {[%emt 0:01:54]} 57. Kh3 {[%emt 0:00:10]} Qa6 {[%emt 0:00:17]} 58. Qh7+ 1-0

[Event "23rd Alekhine FIDE 2019"]
[Site "Voronezh"]
[Date "2019.06.16"]
[Round "5.7"]
[White "Artemov, Nikita"]
[Black "Denishev, Marat"]
[Result "1-0"]
[ECO "B87"]
[WhiteElo "2028"]
[BlackElo "2196"]
[Annotator "RC"]
[PlyCount "81"]
[EventDate "2019.06.12"]
[EventType "swiss"]
[EventCountry "RUS"]
[SourceTitle "playchess.com"]
[Source "ChessBase"]
[SourceQuality "1"]
[TimeControl "40/5400+30:1800+30"]

1. e4 {[%emt 0:06:28]} c5 {[%emt 0:00:00]} 2. Nf3 {[%emt 0:00:07]} d6 {[%emt 0:00:00]} 3. d4 cxd4 {[%emt 0:00:00]} 4. Nxd4 {[%emt 0:00:13]} Nf6 {[%emt 0:00:00]} 5. Nc3 {[%emt 0:00:05]} a6 {[%emt 0:00:00]} 6. Bc4 {[%emt 0:01:35]} e6 {[%emt 0:00:07]} 7. Bb3 {[%emt 0:00:09]} b5 {[%emt 0:00:16]} 8. O-O {[%emt 0:00:50]} Be7 {[%emt 0:00:21]} 9. Qf3 {[%emt 0:01:17]} Qc7 {[%emt 0:01:35]} 10. Qg3 {[%emt 0:01:32]} O-O {[%emt 0:01:48]} 11. Bh6 {[%emt 0:00:43]} Ne8 {[%emt 0:00:17]} 12. Rad1 {[%emt 0:06:59]} Bd7 {[%emt 0:00:37]} 13. Bg5 {[%emt 0:13:24]} Bxg5 {[%emt 0:03:01]} 14. Qxg5 {[%emt 0:00:06]} Nc6 {[%emt 0:00:30]} 15. Nce2 {[%emt 0:02:42]} Nf6 {[%emt 0:08:13]} 16. Ng3 {[%emt 0:02:10]} h6 {[%emt 0:02:37]} 17. Qd2 {[%emt 0:01:38]} Rfd8 {[%emt 0:04:08]} 18. c3 {[%emt 0:03:34]} Rac8 {[%emt 0:06:05]} 19. Qe2 {[%emt 0:08:05]} Ne5 {[%emt 0:04:44]} 20. Nh5 {[%emt 0:09:37]} Nxh5 {[%emt 0:02:51]} 21. Qxh5 {[%emt 0:00:06]} Nc4 {[%emt 0:01:08]} 22. Rd3 {[%emt 0:05:24]} Qc5 {[%emt 0:05:58]} 23. Qe2 {[%emt 0:00:09]} Bc6 {[%emt 0:23:34]} 24. Rg3 {[%emt 0:07:22]} Qe5 {[%emt 0:00:32]} 25. f4 {[%emt 0:06:31]} Qf6 {[%emt 0:13:51]} 26. Bxc4 {[%emt 0:00:53]} bxc4 {[%emt 0:00:08]} 27. e5 {[%emt 0:00:49]} Qh4 {[%emt 0:03:39]} 28. Rg4 {[%emt 0:04:51]} Qe7 {[%emt 0:00:14]} 29. f5 {[%emt 0:00:27]} dxe5 {[%emt 0:05:44]} 30. f6 {[%emt 0:08:24]} Qa7 {[%emt 0:03:48]} 31. Rxg7+ Kf8 {[%emt 0:00:01]} 32. Rg8+ {[%emt 0:01:45]} Kxg8 {[%emt 0:00:04]} 33. Qg4+ {[%emt 0:00:06]} Kf8 {[%emt 0:00:02]} 34. Qg7+ {[%emt 0:00:05]} Ke8 {[%emt 0:00:02]} 35. Qg8+ {[%emt 0:00:07]} Kd7 {[%emt 0:00:01]} 36. Qxf7+ {[%emt 0:00:06]} Kd6 {[%emt 0:00:00]} 37. Qxa7 {[%emt 0:00:16]} exd4 {[%emt 0:00:02]} 38. Qe7+ {[%emt 0:01:42]} Kd5 {[%emt 0:00:25]} 39. cxd4 {[%emt 0:00:28]} Bb5 {[%emt 0:02:09]} 40. f7 {[%emt 0:00:52]} Rf8 {[%emt 0:00:03]} 41. Re1 {[%emt 0:30:53]} 1-0